bitfinex/quotes_SOLUSD_20240917
["timestamp","ask_amount","ask_price","bid_price","bid_amount"]
[1726581082722,7.6011,131.56,131.52,19.0083]
[1726581082930,7.6005,131.57,131.53,7.6024]
[1726581083499,7.6005,131.57,131.52,19.0083]
[1726581083698,7.6005,131.57,131.53,7.6023]
[1726581084323,7.6005,131.57,131.54,7.6022]
[1726581086527,7.5984,131.61,131.57,8.31289457]
[1726581086724,7.5988,131.6,131.57,7.6004]
[1726581087113,7.5988,131.6,131.56,26.6036]
[1726581087317,7.5977,131.62,131.56,19.0027]
[1726581087830,0.0802245,131.63,131.6,7.5985]
[1726581088028,0.0802245,131.63,131.61,7.5979]
[1726581088209,0.0802245,131.63,131.56,23.776884]
[1726581088210,0.0802245,131.63,131.62,26.5916]
[1726581088913,0.0802245,131.63,131.62,18.994]
[1726581089213,0.0802245,131.63,131.62,26.5916]
[1726581089424,0.0802245,131.63,131.61,7.598]
[1726581089921,0.0802245,131.63,131.62,7.5976]
[1726581090226,0.0802245,131.63,131.62,31.374484]
[1726581092023,0.0802245,131.63,131.62,7.5976]
[1726581092328,0.0802245,131.63,131.61,26.5928]
[1726581093253,0.0802245,131.63,131.62,7.5976]
[1726581093529,0.0802245,131.63,131.62,31.374484]
[1726581094215,0.0802245,131.63,131.62,7.5976]
[1726581094629,0.0802245,131.63,131.61,18.9948]
[1726581094630,0.0802245,131.63,131.61,26.5928]
[1726581095017,0.0802245,131.63,131.6,7.5986]
[1726581095203,0.0802245,131.63,131.59,7.5989]
[1726581095425,0.0802245,131.63,131.6,7.5986]
[1726581097521,0.0802245,131.63,131.58,26.5988]
[1726581097522,7.598,131.62,131.58,26.5988]
[1726581097828,1.97941661,131.63,131.57,16.455]
[1726581098034,7.5999,131.58,131.55,19.0034]
[1726581098405,7.5995,131.59,131.55,19.0034]
[1726581098818,6.2148245,131.63,131.55,19.0034]
[1726581099016,6.2148245,131.63,131.59,7.5989]
[1726581099223,6.2148245,131.63,131.61,7.5981]
[1726581099224,0.0802245,131.63,131.61,7.5981]
[1726581099440,0.0802245,131.63,131.6,7.5986]
[1726581099932,0.0802245,131.63,131.61,7.598]
[1726581100149,0.0802245,131.63,131.62,7.5976]
[1726581101120,0.0802245,131.63,131.61,26.5923]
[1726581101448,0.0802245,131.63,131.58,18.9989]
[1726581101733,0.0802245,131.63,131.62,7.5976]
[1726581102539,0.0802245,131.63,131.6,18.9963]
[1726581103122,0.0802245,131.63,131.58,23.776884]
[1726581103327,0.0802245,131.63,131.61,7.5981]
[1726581103935,0.0802245,131.63,131.62,7.5976]
[1726581104625,0.0802245,131.63,131.62,9.11681055]
[1726581104825,0.0802245,131.63,131.62,7.5976]
[1726581105219,0.0802245,131.63,131.62,9.11587432]
[1726581105622,0.0802245,131.63,131.61,18.9948]
[1726581106216,0.0802245,131.63,131.61,26.5929]
[1726581108022,0.0802245,131.63,131.62,8.3084067]
[1726581108536,0.0802245,131.63,131.62,7.5976]
[1726581109240,0.0802245,131.63,131.62,9.11600314]
[1726581109443,0.0802245,131.63,131.61,18.9948]
[1726581109622,7.5978,131.62,131.58,26.5982]
[1726581109824,0.0802245,131.63,131.58,18.9984]
[1726581110144,0.0802245,131.63,131.57,7.6003]
[1726581110314,7.5982,131.61,131.57,7.6003]
[1726581110520,7.5978,131.62,131.57,7.6003]
[1726581110734,7.5988,131.6,131.55,26.6046]
[1726581110920,7.5988,131.6,131.55,19.0031]
[1726581111335,13.7143,131.6,131.55,19.0031]
[1726581111946,13.7143,131.6,131.56,7.6006]
[1726581112451,6.1155,131.6,131.56,7.6006]
[1726581112623,15.7479,131.62,131.53,16.3509]
[1726581112624,23.3455,131.62,131.58,7.5995]
[1726581112950,14.2619245,131.63,131.58,7.5995]
[1726581113250,7.5977,131.62,131.58,7.5995]
[1726581113751,14.2619245,131.63,131.59,7.5991]
[1726581114123,6.6647245,131.63,131.57,19.0008]
[1726581114445,7.5981,131.62,131.57,26.6009]
[1726581114748,7.5982,131.61,131.57,26.6009]
[1726581115643,7.5988,131.6,131.57,19.0008]
[1726581115948,7.5984,131.61,131.57,26.6012]
[1726581116133,7.5977,131.62,131.58,7.5999]
[1726581116645,14.2617245,131.63,131.59,7.5992]
[1726581117748,7.5976,131.62,131.58,7.5997]
[1726581118344,7.5992,131.6,131.56,7.6006]
[1726581118526,6.6647245,131.63,131.56,19.0018]
[1726581118723,7.5981,131.62,131.58,7.5995]
[1726581118949,6.6647245,131.63,131.59,7.5993]
[1726581118950,14.2619245,131.63,131.59,7.5993]
[1726581119151,14.2619245,131.63,131.58,18.9996]
[1726581119152,6.6647245,131.63,131.58,18.9996]
[1726581119449,6.6647245,131.63,131.59,7.5991]
[1726581119450,14.2621245,131.63,131.59,7.5991]
[1726581119626,0.0802245,131.63,131.6,7.5983]
[1726581119827,0.0802245,131.63,131.62,7.5976]
[1726581121729,0.0802245,131.63,131.61,7.598]
[1726581122238,0.0802245,131.63,131.6,18.9967]
[1726581122239,7.6772245,131.63,131.6,26.5952]
[1726581122439,7.5976,131.62,131.57,19.0003]
[1726581122648,0.0802245,131.63,131.57,19.0003]
[1726581122649,1.97980927,131.63,131.57,19.0003]
[1726581122952,7.5989,131.6,131.57,19.0003]
[1726581123156,7.5983,131.61,131.57,26.6007]
[1726581123724,7.5988,131.6,131.56,7.6009]
[1726581124341,7.5988,131.6,131.54,19.0042]
[1726581124342,7.6003,131.58,131.54,26.6062]
[1726581124855,7.5995,131.59,131.55,7.6015]
[1726581125027,1.90010792,131.59,131.54,19.0042]
[1726581125226,6.165,131.6,131.54,19.0042]
[1726581125447,7.6003,131.58,131.54,26.6064]
[1726581127052,7.5995,131.59,131.55,7.6016]
[1726581127351,7.6001,131.58,131.54,26.6064]
[1726581127742,1.90019678,131.57,131.51,19.2563014]
[1726581128346,25.1622,131.6,131.51,26.8598014]
[1726581128347,7.6017,131.55,131.51,26.8598014]
[1726581129656,15.7936,131.57,131.51,26.8598014]
[1726581129657,7.6012,131.56,131.52,7.6033]
[1726581129953,20.0,131.59,131.53,19.0069]
[1726581130136,7.6001,131.58,131.54,7.6018]
[1726581130336,7.5996,131.59,131.55,7.6016]
[1726581130560,7.5993,131.59,131.55,19.0038]
[1726581130736,1.89997107,131.58,131.52,19.0071]
[1726581131064,6.165,131.6,131.54,19.0054]
[1726581131237,1.89996994,131.59,131.54,19.0054]
[1726581131436,6.165,131.6,131.54,19.0054]
[1726581131756,7.6003,131.58,131.54,26.6075]
[1726581131940,6.165,131.6,131.51,24.0246854]
[1726581132146,7.6012,131.56,131.52,7.6029]
[1726581132456,7.6007,131.57,131.53,7.6027]
[1726581132764,25.162,131.6,131.52,7.6032]
[1726581132765,22.15125443,131.59,131.52,7.6032]
[1726581132947,22.15125443,131.59,131.52,7.6033]
[1726581132948,7.6012,131.56,131.52,7.6033]
[1726581133355,7.6017,131.55,131.51,26.8601014]
[1726581133657,7.6013,131.56,131.52,7.6033]
[1726581134657,20.25098,131.59,131.53,26.6096]
[1726581134658,7.6007,131.57,131.53,26.6096]
[1726581134858,7.6007,131.57,131.54,7.6022]
[1726581135158,6.165,131.6,131.56,7.601]
[1726581135337,7.5993,131.59,131.55,26.6052]
[1726581137236,6.165,131.6,131.57,7.6003]
[1726581137868,35.6383245,131.63,131.58,7.5997]
[1726581137869,7.5978,131.62,131.58,7.5997]
[1726581138041,7.7052143,131.62,131.58,7.5997]
[1726581138444,7.7052143,131.62,131.57,19.0007]
[1726581138445,0.1074143,131.62,131.59,7.5992]
[1726581138854,0.1074143,131.62,131.59,7.0992]
[1726581139370,7.7052143,131.62,131.58,7.5997]
[1726581140446,7.5982,131.61,131.57,26.601]
[1726581141342,0.1074143,131.62,131.57,19.0007]
[1726581141540,0.1074143,131.62,131.61,7.5982]
[1726581142852,0.1074143,131.62,131.59,18.9982]
[1726581142853,0.1074143,131.62,131.59,26.5973]
[1726581143561,7.5992,131.6,131.56,26.6025]
[1726581143756,7.6,131.58,131.54,7.6018]
[1726581143941,7.5997,131.59,131.54,7.6018]
[1726581144139,9.50003592,131.58,131.53,26.7580584]
[1726581144566,7.5995,131.59,131.54,7.602]
[1726581145046,7.5989,131.6,131.55,7.6016]
[1726581145251,7.5989,131.6,131.55,7.1016]
[1726581145453,7.6004,131.58,131.53,19.1554584]
[1726581146058,7.6006,131.57,131.53,26.7581584]
[1726581146256,7.6006,131.57,131.53,19.1554584]
[1726581146455,7.6,131.58,131.53,26.7580584]
[1726581146657,20.0,131.6,131.56,7.6006]
[1726581146964,6.1399,131.61,131.57,7.6002]
[1726581147169,13.7382,131.61,131.57,7.6002]
[1726581148175,0.1074143,131.62,131.6,7.5982]
[1726581148345,0.1074143,131.62,131.61,7.5982]
[1726581148346,0.0772543,131.62,131.61,7.5982]
[1726581148967,0.0772543,131.62,131.61,6.5982]
[1726581151273,0.0772543,131.62,131.61,30.375084]
[1726581151448,0.0772543,131.62,131.61,30.500574]
[1726581151773,0.0772543,131.62,131.61,65.916374]
[1726581151949,0.2569727,131.66,131.65,50.362384]
[1726581152445,0.2569727,131.66,131.65,26.5855]
[1726581153656,0.2569727,131.66,131.64,7.5963]
[1726581153863,0.2569727,131.66,131.63,7.5968]
[1726581154072,0.2569727,131.66,131.64,7.5963]
[1726581154855,0.2569727,131.66,131.62,18.9935]
[1726581155153,7.8523727,131.66,131.62,18.9935]
[1726581155766,1.89906057,131.65,131.6,7.5987]
[1726581156158,6.4325727,131.66,131.64,26.5874]
[1726581156372,6.4325727,131.66,131.64,18.9911]
[1726581156373,0.2569727,131.66,131.64,18.9911]
[1726581156577,0.2569727,131.66,131.65,7.5958]
[1726581161987,0.2569727,131.66,131.65,31.372684]
[1726581163363,0.2569727,131.66,131.65,7.5958]
[1726581164382,0.2569727,131.66,131.64,18.9911]
[1726581164588,0.2569727,131.66,131.64,26.5874]
[1726581165069,0.2569727,131.66,131.65,7.5958]
[1726581170368,0.2569727,131.66,131.65,31.372684]
[1726581173374,0.2569727,131.66,131.65,7.5958]
[1726581177290,0.2569727,131.66,131.63,7.5967]
[1726581177474,0.2569727,131.66,131.64,7.5964]
[1726581177670,6.6941727,131.66,131.63,18.9925]
[1726581177890,6.6941727,131.66,131.64,7.5964]
[1726581178281,0.2569727,131.66,131.65,26.5855]
[1726581180602,0.2569727,131.66,131.65,50.362384]
[1726581182405,0.2569727,131.66,131.65,26.5855]
[1726581186184,0.2569727,131.66,131.65,50.362384]
[1726581186592,0.2569727,131.66,131.65,26.5855]
[1726581189312,0.2569727,131.66,131.65,50.362384]
[1726581192406,0.2569727,131.66,131.65,50.613364]
[1726581192609,0.2569727,131.66,131.65,52.13174319]
[1726581193319,0.2569727,131.66,131.65,50.362384]
[1726581194232,0.2569727,131.66,131.65,50.613364]
[1726581194531,0.2569727,131.66,131.65,66.478864]
[1726581194701,0.2569727,131.7,131.69,50.354284]
[1726581194894,0.2569727,131.7,131.69,69.78756456]
[1726581196022,0.2569727,131.7,131.69,70.03854456]
[1726581198419,0.2569727,131.7,131.69,90.03854456]
[1726581198718,0.2569727,131.7,131.69,106.24794456]
[1726581199711,0.2569727,131.7,131.69,107.60863929]
[1726581199908,0.2569727,131.7,131.69,106.24794456]
[1726581203416,7.27e-05,131.7,131.69,106.24794456]
[1726581204317,0.2569727,131.74,131.73,64.5258]
[1726581204700,0.2569727,131.74,131.73,88.302684]
[1726581206703,0.2569727,131.74,131.73,88.428174]
[1726581208106,0.2569727,131.74,131.73,88.302684]
[1726581208735,0.2569727,131.74,131.72,7.5917]
[1726581209118,0.2569727,131.74,131.73,7.5912]
[1726581209514,0.2569727,131.74,131.73,9.07173757]
[1726581210329,0.2569727,131.74,131.73,31.368084]
[1726581211313,0.2569727,131.74,131.73,7.5912]
[1726581212022,6.4441,131.73,131.69,18.9829]
[1726581212227,7.5919,131.72,131.68,26.579]
[1726581212409,15.184,131.72,131.68,18.985]
[1726581212731,15.184,131.72,131.7,26.5748]
[1726581213028,15.184,131.72,131.7,18.982]
[1726581213616,15.184,131.72,131.7,26.5748]
[1726581213820,6.4441,131.73,131.71,7.5924]
[1726581214134,6.4441,131.73,131.67,18.9861]
[1726581214432,7.5924,131.71,131.67,18.9861]
[1726581214634,7.592,131.72,131.67,26.5807]
[1726581214814,27.592,131.72,131.68,7.594]
[1726581215011,20.0,131.72,131.67,18.9861]
[1726581215216,20.0,131.72,131.69,7.5934]
[1726581215417,6.4441,131.73,131.7,26.5753]
[1726581216318,7.5926,131.71,131.67,26.5808]
[1726581216720,27.5919,131.72,131.67,26.5808]
[1726581217334,27.5919,131.72,131.68,9.11207696]
[1726581217638,27.5919,131.72,131.68,7.5941]
[1726581218425,27.5919,131.72,131.67,18.9862]
[1726581218426,20.0,131.72,131.69,7.5935]
[1726581218831,20.0,131.72,131.68,7.594]
[1726581221315,20.0,131.72,131.69,7.5934]
[1726581221736,20.0,131.72,131.7,7.593]
[1726581221913,6.4441,131.73,131.69,18.9835]
[1726581222121,6.4441,131.73,131.7,7.5928]
[1726581222720,20.0,131.72,131.69,18.9835]
[1726581223021,27.5922,131.72,131.67,7.5942]
[1726581223220,27.5922,131.72,131.68,7.5941]
[1726581223449,27.5922,131.72,131.67,7.5946]
[1726581223450,7.5925,131.71,131.67,7.5946]
[1726581223818,27.592,131.72,131.68,7.5941]
[1726581225131,20.0,131.72,131.69,7.5934]
[1726581225413,27.5919,131.72,131.68,26.5789]
[1726581226139,7.5924,131.71,131.68,18.985]
[1726581226723,7.594,131.69,131.65,26.5843]
[1726581227029,7.594,131.69,131.6,38.2497727]
[1726581227030,14.1368,131.67,131.63,7.5967]
[1726581227217,7.5953,131.66,131.62,26.5899]
[1726581227426,14.1365,131.67,131.63,7.597]
[1726581231137,14.1365,131.67,131.62,26.5901]
[1726581231138,16.03536096,131.67,131.62,26.5901]
[1726581231446,20.0,131.66,131.6,0.2569727]
[1726581231620,20.0,131.63,131.6,0.2569727]
[1726581231826,27.5982,131.61,131.6,0.2569727]
[1726581232847,20.0,131.61,131.6,0.2569727]
[1726581234733,29.49794711,131.61,131.6,0.2569727]
[1726581236941,27.5982,131.61,131.6,0.2569727]
[1726581237537,29.49817651,131.61,131.6,0.2569727]
[1726581239046,27.5982,131.61,131.6,0.2569727]
[1726581240333,20.0,131.61,131.6,0.2569727]
[1726581240644,29.74896766,131.61,131.6,0.2569727]
[1726581242347,29.74896766,131.61,131.56,0.2569727]
[1726581242348,27.6005,131.57,131.56,0.2569727]
[1726581243840,34.26458,131.57,131.56,0.2569727]
[1726581244030,36.16551125,131.57,131.56,0.2569727]
[1726581244230,27.6022,131.54,131.53,0.2569727]
[1726581244743,27.85318,131.54,131.53,0.2569727]
[1726581244928,34.12478,131.54,131.53,0.2569727]
[1726581245441,45.59413782,131.54,131.53,0.2569727]
[1726581245645,36.02605303,131.54,131.53,0.2569727]
[1726581245959,20.0,131.51,131.49,0.2569727]
[1726581246128,21.90142031,131.51,131.49,0.2569727]
[1726581246542,29.50552031,131.51,131.49,0.2569727]
[1726581246769,20.0,131.51,131.49,0.2569727]
[1726581247052,21.90137684,131.51,131.49,0.1399054]
[1726581247637,20.0,131.51,131.49,0.1399054]
[1726581248057,21.90143288,131.51,131.49,0.1399054]
[1726581248558,20.0,131.51,131.49,0.1399054]
[1726581248854,21.9013765,131.51,131.49,0.1399054]
[1726581249347,27.6028,131.53,131.49,0.1399054]
[1726581249552,1.90123174,131.52,131.49,0.1399054]
[1726581249857,1.90123212,131.51,131.49,0.1399054]
[1726581250030,21.90123212,131.51,131.49,0.1399054]
[1726581250237,44.1913,131.5,131.49,0.1399054]
[1726581250665,36.5868,131.5,131.49,0.1399054]
[1726581250845,20.0,131.5,131.49,7.7450054]
[1726581251046,20.0,131.5,131.49,0.1399054]
[1726581252056,35.74134576,131.5,131.49,0.1399054]
[1726581252245,26.2352,131.5,131.49,0.1399054]
[1726581254359,6.2352,131.5,131.49,0.1399054]
[1726581254856,20.0,131.52,131.49,7.7450054]
[1726581255059,1.9010987,131.52,131.49,7.7450054]
[1726581255360,21.3507,131.53,131.49,0.1399054]
[1726581255361,1.90114917,131.51,131.49,0.1399054]
[1726581255741,7.6034,131.52,131.49,0.1399054]
[1726581256349,21.90132938,131.51,131.49,0.1399054]
[1726581256750,20.0,131.51,131.49,0.1399054]
[1726581256952,21.90133096,131.51,131.49,0.1399054]
[1726581257759,7.6034,131.52,131.49,7.7449054]
[1726581257760,20.0,131.52,131.49,7.7449054]
[1726581258142,20.0,131.52,131.5,7.6044]
[1726581258753,6.1742,131.53,131.51,7.6039]
[1726581258959,14.2434,131.56,131.51,7.6039]
[1726581259144,14.2434,131.56,131.52,7.6033]
[1726581259344,7.6026,131.54,131.5,7.6044]
[1726581259566,9.50390034,131.53,131.49,26.7572054]
[1726581259773,7.6034,131.52,131.49,19.1523054]
[1726581260066,9.50420034,131.53,131.49,26.7573054]
[1726581260266,1.90100034,131.53,131.49,0.1399054]
[1726581260443,7.6037,131.52,131.49,0.1399054]
[1726581260645,21.90133356,131.51,131.49,0.1399054]
[1726581260845,20.0,131.51,131.49,0.1399054]
[1726581261458,1.90133012,131.52,131.49,0.1399054]
[1726581261767,27.603,131.53,131.49,0.1399054]
[1726581261768,20.0,131.53,131.49,0.1399054]
[1726581262174,20.0,131.53,131.5,7.6041]
[1726581262471,27.6018,131.55,131.51,7.6039]
[1726581262764,6.6418,131.56,131.51,7.6037]
[1726581263271,6.6418,131.56,131.52,7.6033]
[1726581263272,14.243,131.56,131.52,7.6033]
[1726581263445,6.6418,131.56,131.52,19.0082]
[1726581263845,6.6418,131.56,131.52,26.6112]
[1726581263846,14.2429,131.56,131.52,26.6112]
[1726581264077,6.6418,131.56,131.52,19.0082]
[1726581264271,16.14400416,131.56,131.52,19.0082]
[1726581264479,25.71181719,131.56,131.52,26.6115]
[1726581264775,1.90070597,131.55,131.52,26.6115]
[1726581264956,23.81121303,131.56,131.52,26.6115]
[1726581265156,23.81121303,131.56,131.52,19.0082]
[1726581265356,9.50260747,131.55,131.51,7.6037]
[1726581265558,1.90080708,131.54,131.51,7.6037]
[1726581265779,7.6018,131.55,131.51,7.6037]
[1726581266266,29.50316508,131.54,131.5,7.6044]
[1726581266477,29.50326508,131.54,131.49,26.7565054]
[1726581266773,29.50326508,131.54,131.5,7.6044]
[1726581267156,29.50326508,131.54,131.49,26.7567054]
[1726581267157,7.6029,131.53,131.49,26.7567054]
[1726581267570,9.50326508,131.54,131.5,7.6045]
[1726581267757,20.0,131.55,131.51,19.0098]
[1726581268167,27.6017,131.55,131.51,19.0098]
[1726581268856,20.0,131.55,131.52,7.6034]
[1726581269553,27.6016,131.55,131.52,7.6034]
[1726581270177,20.0,131.55,131.53,7.6028]
[1726581270469,29.5023198,131.55,131.51,19.0098]
[1726581270676,1.90080832,131.54,131.49,7.7448054]
[1726581270850,20.0,131.55,131.49,7.7448054]
[1726581271049,7.6034,131.52,131.49,0.1399054]
[1726581271268,7.6029,131.53,131.49,7.7450054]
[1726581271474,9.50456263,131.52,131.49,7.7450054]
[1726581271772,7.6034,131.52,131.49,7.7450054]
[1726581271980,21.90115015,131.51,131.49,0.1399054]
[1726581272184,20.0,131.51,131.49,0.1399054]
[1726581272555,7.6034,131.52,131.49,0.1399054]
[1726581272878,1.90122303,131.51,131.49,0.1399054]
[1726581273074,7.6034,131.52,131.49,0.1399054]
[1726581273659,1.9012435,131.51,131.49,0.1399054]
[1726581274178,7.6034,131.52,131.49,0.1399054]
[1726581274474,20.0,131.52,131.49,0.1399054]
[1726581274858,20.0,131.52,131.5,7.6045]
[1726581275181,7.6029,131.53,131.49,7.7448054]
[1726581275478,27.6024,131.54,131.5,7.6045]
[1726581275880,11.13395563,131.55,131.51,7.6039]
[1726581276057,6.6418,131.56,131.53,7.6027]
[1726581277569,20.0,131.55,131.53,7.6027]
[1726581278169,20.0,131.55,131.52,19.0081]
[1726581278170,29.56781303,131.55,131.52,26.6113]
[1726581278376,29.56781303,131.55,131.53,7.6028]
[1726581278746,29.56781303,131.55,131.52,26.6113]
[1726581278958,29.56781303,131.55,131.52,19.0081]
[1726581279156,1.90078873,131.54,131.51,7.6038]
[1726581279380,29.56781303,131.55,131.51,7.6038]
[1726581279553,29.56781303,131.55,131.52,7.6033]
[1726581280555,29.56781303,131.55,131.51,19.0097]
[1726581280556,29.56781303,131.55,131.51,26.6135]
[1726581280754,29.56781303,131.55,131.5,0.1399054]
[1726581280755,7.6028,131.53,131.5,0.1399054]
[1726581280955,1.90096772,131.52,131.5,0.1399054]
[1726581281157,20.0,131.53,131.5,0.1399054]
[1726581281582,27.6029,131.53,131.5,0.1399054]
[1726581281771,7.6036,131.52,131.5,0.1399054]
[1726581281965,29.50516088,131.51,131.5,0.1399054]
[1726581282969,7.6039,131.51,131.5,0.1399054]
[1726581283175,29.50537429,131.51,131.5,0.1399054]
[1726581283556,51.88075429,131.51,131.5,0.1399054]
[1726581284356,61.44856732,131.51,131.5,0.1399054]
[1726581284579,135.22545132,131.51,131.5,0.1399054]
[1726581284757,143.43957432,131.51,131.5,0.1399054]
[1726581285466,141.53810003,131.51,131.5,0.1399054]
[1726581285876,7.6062,131.47,131.46,0.2745295]
[1726581286082,27.85718,131.47,131.46,0.2745295]
[1726581287273,29.75953565,131.47,131.46,0.2745295]
[1726581287479,27.85718,131.47,131.46,0.2745295]
[1726581288377,34.40128,131.47,131.46,0.2745295]
[1726581288561,43.96909303,131.47,131.46,0.2745295]
[1726581289375,45.87148787,131.47,131.46,0.2745295]
[1726581289575,43.96909303,131.47,131.46,0.2745295]
[1726581290386,45.87148896,131.47,131.46,0.2745295]
[1726581290592,43.71811303,131.47,131.46,0.2745295]
[1726581290766,36.11191303,131.47,131.46,0.2745295]
[1726581291085,7.6053,131.49,131.46,0.2745295]
[1726581291664,25.20625563,131.5,131.46,0.2745295]
[1726581291961,17.60165563,131.5,131.46,7.8813295]
[1726581293078,19.50317047,131.5,131.46,7.8813295]
[1726581294169,19.50317047,131.5,131.46,0.2745295]
[1726581294170,20.0,131.49,131.46,0.2745295]
[1726581294371,1.90166342,131.48,131.46,0.2745295]
[1726581295379,20.0,131.47,131.46,0.2745295]
[1726581298902,6.4677,131.5,131.46,0.2745295]
[1726581299084,20.0,131.49,131.46,26.8981295]
[1726581299469,20.0,131.49,131.46,19.2915295]
[1726581300078,21.90164565,131.49,131.46,19.2915295]
[1726581300295,1.9016934,131.48,131.46,19.2915295]
[1726581300495,20.0,131.49,131.46,19.2915295]
[1726581300496,21.90166955,131.49,131.46,19.2915295]
[1726581300675,1.90166955,131.48,131.46,19.2915295]
[1726581300877,9.50736955,131.48,131.46,0.2745295]
[1726581301092,27.6062,131.47,131.46,0.2745295]
[1726581301492,20.0,131.47,131.46,0.2745295]
[1726581301997,20.0,131.47,131.46,7.8813295]
[1726581302296,20.0,131.47,131.46,0.2745295]
[1726581302970,27.6062,131.47,131.46,0.2745295]
[1726581303397,20.0,131.47,131.46,0.2745295]
[1726581303704,29.50805181,131.47,131.46,0.2745295]
[1726581304377,40.89298744,131.47,131.46,0.2745295]
[1726581305568,38.99113563,131.47,131.46,0.2745295]
[1726581306592,27.6062,131.47,131.46,0.2745295]
[1726581308679,27.6062,131.47,131.42,7.8835295]
[1726581308680,27.6068,131.46,131.44,0.2537608]
[1726581308884,20.0,131.46,131.44,0.4001906]
[1726581309281,11.13395563,131.49,131.46,7.6067]
[1726581309485,22.286423,131.5,131.46,7.6067]
[1726581309884,7.6052,131.49,131.45,26.6258]
[1726581310274,7.6051,131.49,131.45,26.6258]
[1726581310474,29.50753512,131.48,131.44,8.0080906]
[1726581310701,7.6065,131.47,131.44,0.4001906]
[1726581311170,38.73965563,131.48,131.44,8.0080906]
[1726581311615,40.64149175,131.48,131.44,0.4001906]
[1726581311982,38.73965563,131.48,131.44,8.0080906]
[1726581312695,31.13395563,131.48,131.44,0.4001906]
[1726581312997,20.0,131.52,131.45,16.0846]
[1726581313199,20.0,131.52,131.47,7.6058]
[1726581313200,7.6036,131.52,131.47,7.6058]
[1726581313405,7.6036,131.52,131.46,19.017]
[1726581313406,7.6036,131.52,131.48,7.6056]
[1726581313583,7.604,131.51,131.47,7.6062]
[1726581313896,6.237,131.53,131.46,19.1634298]
[1726581313897,7.6049,131.5,131.46,19.1634298]
[1726581314111,11.27985518,131.52,131.47,7.6059]
[1726581314401,11.27985518,131.52,131.46,19.1634298]
[1726581314402,7.6061,131.48,131.46,0.1464298]
[1726581314580,7.6053,131.49,131.46,0.1464298]
[1726581314781,20.0,131.49,131.46,0.1464298]
[1726581315187,20.0,131.51,131.47,7.6058]
[1726581315792,27.6039,131.51,131.47,7.6058]
[1726581315998,20.0,131.5,131.47,7.6058]
[1726581316294,7.6024,131.54,131.48,19.0142]
[1726581316607,7.6026,131.54,131.49,7.6049]
[1726581317681,6.3661,131.56,131.5,19.0109]
[1726581317682,20.0,131.53,131.5,19.0109]
[1726581317881,20.0,131.55,131.51,7.6035]
[1726581318206,20.0,131.54,131.5,26.6152]
[1726581318406,1.90070738,131.54,131.48,7.6052]
[1726581318703,7.6032,131.53,131.49,7.605]
[1726581319208,27.6024,131.54,131.49,26.6177]
[1726581319392,20.0,131.54,131.51,7.6035]
[1726581319893,20.0,131.56,131.51,26.6134]
[1726581320104,27.6015,131.56,131.51,26.6134]
[1726581320280,20.0,131.56,131.51,19.0099]
[1726581320487,7.6006,131.57,131.53,7.6024]
[1726581320719,7.6011,131.56,131.52,7.6032]
[1726581320890,7.6022,131.54,131.5,23.0847]
[1726581321093,7.6018,131.55,131.51,7.6039]
[1726581321513,7.6011,131.56,131.52,7.6032]
[1726581322015,7.6016,131.55,131.51,26.6122]
[1726581322317,9.50281508,131.54,131.51,19.0085]
[1726581322500,7.6022,131.54,131.5,15.4804]
[1726581323112,7.6022,131.54,131.5,23.0848]
[1726581323506,27.6016,131.56,131.52,7.6032]
[1726581323689,7.6017,131.55,131.51,7.6037]
[1726581324628,20.0,131.55,131.52,7.6033]
[1726581324994,20.0,131.55,131.52,26.6117]
[1726581325211,27.602,131.55,131.51,7.6038]
[1726581325989,7.6026,131.54,131.5,23.0847]
[1726581326193,1.90079278,131.54,131.5,15.4804]
[1726581326399,7.6034,131.52,131.49,19.0115]
[1726581326816,7.6011,131.56,131.52,7.6029]
[1726581327227,7.6011,131.56,131.52,26.6113]
[1726581327533,1.90067969,131.55,131.48,0.1464298]
[1726581327817,7.6041,131.51,131.48,0.1464298]
[1726581328000,7.6035,131.52,131.48,0.1464298]